bitfinex-derivatives/quotes_ETHF0:USTF0_20241027
["timestamp","ask_amount","ask_price","bid_price","bid_amount"]
[1730052882248,1.5574583,2495.9,2495.8,0.40109]
[1730052882548,2.3964583,2495.9,2495.8,0.40109]
[1730052882752,1.24007,2495.9,2495.8,1.9779683]
[1730052882940,0.839,2495.9,2495.8,1.9779683]
[1730052883146,1.24007,2495.9,2495.8,1.9779683]
[1730052883652,1.24006,2496.0,2495.9,0.40107]
[1730052883845,1.24006,2496.0,2495.9,0.81287]
[1730052884347,0.839,2496.0,2495.9,1.9692483]
[1730052884948,1.24006,2496.0,2495.9,1.9692483]
[1730052885149,0.839,2496.0,2495.9,1.9692483]
[1730052886155,1.24006,2496.0,2495.9,1.9692483]
[1730052888849,2.3964383,2496.0,2495.9,1.9692483]
[1730052890154,2.3964383,2496.0,2495.9,0.81287]
[1730052892256,2.3964383,2496.0,2495.9,4.02067]
[1730052895859,2.3964383,2496.0,2495.9,0.81287]
[1730052897052,2.3964383,2496.0,2495.9,4.02067]
[1730052897958,2.3964383,2496.0,2495.9,0.81287]
[1730052898150,2.3964383,2496.0,2495.9,4.02067]
[1730052901356,2.3964383,2496.0,2495.9,0.81287]
[1730052901569,2.3964383,2496.0,2495.9,4.02067]
[1730052902068,0.839,2496.0,2495.9,5.1770483]
[1730052902365,1.24006,2496.0,2495.9,5.1770483]
[1730052903367,2.3964383,2496.0,2495.9,5.1770483]
[1730052907267,2.3964383,2496.0,2495.9,4.02067]
[1730052907853,2.3964383,2496.0,2495.9,0.81287]
[1730052908058,2.3964383,2496.0,2495.9,4.02067]
[1730052909657,0.4011,2495.7,2495.5,0.40112]
[1730052909860,0.40115,2495.5,2495.4,0.40114]
[1730052910061,0.40115,2495.5,2495.4,1.5575183]
[1730052910367,0.40115,2495.5,2495.4,1.9851183]
[1730052910568,1.24015,2495.5,2495.4,1.9851183]
[1730052911863,2.3965283,2495.5,2495.4,0.4276]
[1730052912073,2.3965283,2495.5,2495.4,0.82875]
[1730052913565,0.839,2495.5,2495.4,1.9851283]
[1730052913973,1.24014,2495.5,2495.4,1.9851283]
[1730052914968,0.839,2495.5,2495.4,1.9851283]
[1730052915170,1.24014,2495.5,2495.4,1.9851283]
[1730052919874,0.839,2495.5,2495.4,1.9851283]
[1730052920673,1.24014,2495.5,2495.4,1.9851283]
[1730052920975,1.66484,2495.5,2495.4,1.9851283]
[1730052921174,2.8212183,2495.5,2495.4,0.40115]
[1730052921375,3.2416183,2495.5,2495.4,0.40115]
[1730052921973,0.40115,2495.4,2495.3,5.2153483]
[1730052922282,2.8404783,2495.5,2495.4,0.60069339]
[1730052922586,3.6848183,2495.5,2495.4,0.60069339]
[1730052924782,2.08524,2495.5,2495.4,2.15822169]
[1730052927289,2.08524,2495.5,2495.4,1.00184339]
[1730052927479,2.08524,2495.5,2495.4,0.60069339]
[1730052927786,2.08524,2495.5,2495.4,1.00184339]
[1730052928683,2.08524,2495.5,2495.4,0.60069339]
[1730052928886,3.2416183,2495.5,2495.4,0.60069339]
[1730052929783,7.2488183,2495.5,2495.4,0.60069339]
[1730052929986,11.6129966,2495.5,2495.4,0.60069339]
[1730052930887,10.4566183,2495.5,2495.4,0.60069339]
[1730052931590,11.6129966,2495.5,2495.4,0.60069339]
[1730052931784,10.4566183,2495.5,2495.4,0.60069339]
[1730052931988,11.6129966,2495.5,2495.4,0.60069339]
[1730052933289,15.64048144,2495.5,2494.8,0.8394]
[1730052933488,1.5576083,2495.0,2494.9,1.5575983]
[1730052933685,2.3966083,2495.0,2494.9,1.5575983]
[1730052934291,2.3966083,2495.0,2494.9,1.1563783]
[1730052934485,2.3966083,2495.0,2494.8,2.8135283]
[1730052934486,1.9953783,2495.0,2494.8,2.8135283]
[1730052934782,1.5576083,2494.9,2494.8,1.24065]
[1730052935194,1.5576083,2494.9,2494.8,0.8394]
[1730052936594,1.5576083,2494.9,2494.8,1.24065]
[1730052937080,1.5576083,2494.9,2494.8,0.8394]
[1730052937785,1.5576083,2494.9,2494.8,1.24065]
[1730052938889,1.5576083,2494.9,2494.8,2.3970283]
[1730052939392,2.3966083,2495.0,2494.9,0.40123]
[1730052939585,2.3966083,2495.0,2494.9,1.5576083]
[1730052940389,1.9953783,2495.0,2494.9,1.5576083]
[1730052941188,0.4394,2495.3,2494.9,1.5576083]
[1730052941385,0.40116,2495.4,2495.3,0.40115]
[1730052941590,2.3955383,2495.4,2495.3,1.5575283]
[1730052942187,0.40117,2495.3,2495.2,1.26848]
[1730052942389,1.5575483,2495.3,2495.2,1.26848]
[1730052942692,1.5575483,2495.3,2495.2,2.4248583]
[1730052943184,1.1563783,2495.3,2495.2,2.4248583]
[1730052943590,1.5575483,2495.3,2495.2,2.4248583]
[1730052947190,0.40117,2495.3,2495.2,2.4248583]
[1730052947388,1.5575483,2495.3,2495.2,2.4248583]
[1730052947590,1.5575483,2495.3,2495.2,1.26848]
[1730052953392,1.5575483,2495.3,2495.2,2.4248583]
[1730052957199,0.838,2495.5,2495.4,0.40115]
[1730052957507,0.838,2495.5,2495.4,1.5575283]
[1730052957796,0.40113,2495.6,2495.5,0.40114]
[1730052957993,1.23913,2495.6,2495.5,0.40114]
[1730052958196,1.23913,2495.6,2495.5,0.81014]
[1730052958798,0.40113,2495.6,2495.5,0.81014]
[1730052958995,1.23913,2495.6,2495.5,0.81014]
[1730052959303,0.838,2495.6,2495.5,5.9737183]
[1730052960301,0.40109,2495.9,2495.8,0.40107]
[1730052960492,0.40107,2496.0,2495.9,0.8434]
[1730052960693,2.3954483,2496.0,2495.9,1.24447]
[1730052961799,1.9943783,2496.0,2495.9,1.24447]
[1730052961994,2.3954383,2496.0,2495.9,1.24447]
[1730052962597,2.3954383,2496.0,2495.9,0.8434]
[1730052964506,0.40114,2495.5,2495.4,0.40114]
[1730052964706,2.3955183,2495.5,2495.4,0.40114]
[1730052966004,2.3955183,2495.5,2495.3,0.40116]
[1730052966005,0.40116,2495.4,2495.3,0.40116]
[1730052966299,0.40116,2495.4,2495.2,1.1563783]
[1730052966300,1.1563783,2495.4,2495.2,1.1563783]
[1730052966503,0.40118,2495.3,2495.2,0.40118]
[1730052967706,1.5575383,2495.4,2495.3,0.40117]
[1730052968311,3.60892,2495.7,2495.6,0.40112]
[1730052968504,5.6032983,2495.7,2495.6,1.5574983]
[1730052968705,5.6032983,2495.7,2495.6,0.40112]
[1730052969107,0.40113,2495.6,2495.5,0.40113]
[1730052969313,1.5575083,2495.6,2495.5,0.40113]
[1730052969518,0.40114,2495.5,2495.4,1.9959183]
[1730052970701,1.5575183,2495.5,2495.4,0.83954]
[1730052971013,1.5575083,2495.6,2495.5,0.40113]
[1730052971206,1.5575083,2495.6,2495.5,0.81573]
[1730052972106,0.838,2495.7,2495.6,0.40112]
[1730052972313,0.838,2495.7,2495.6,1.5574983]
[1730052973012,1.5574583,2495.9,2495.8,0.40107]
[1730052973208,1.5574583,2495.9,2495.8,1.5574483]
[1730052973209,0.838,2495.9,2495.8,1.5574483]
[1730052973413,2.3954483,2495.9,2495.8,1.5574483]
[1730052973614,2.3954483,2495.9,2495.8,0.40107]
[1730052974919,1.9943783,2495.9,2495.8,0.40107]
[1730052975119,2.3954483,2495.9,2495.8,0.81827]
[1730052978415,0.838,2495.9,2495.8,1.9746483]
[1730052978816,0.40107,2495.9,2495.8,1.9746483]
[1730052979018,1.23907,2495.9,2495.8,1.9746483]
[1730052979412,0.838,2495.9,2495.8,1.9746483]
[1730052980124,1.23907,2495.9,2495.8,1.9746483]
[1730052980419,0.838,2495.9,2495.8,1.9746483]
[1730052981119,1.23907,2495.9,2495.8,1.9746483]
[1730052981313,0.838,2495.9,2495.8,1.9746483]
[1730052981520,3.60885,2496.1,2496.0,0.40106]
[1730052981720,5.6032283,2496.1,2496.0,0.40106]
[1730052982220,5.6032283,2496.1,2496.0,0.84096]
[1730052982922,4.44685,2496.1,2496.0,0.84096]
[1730052983124,5.6032283,2496.1,2496.0,0.84096]
[1730052984022,2.3954283,2496.1,2496.0,0.84096]
[1730052985219,2.3954283,2496.1,2496.0,0.4399]
[1730052985419,2.3954283,2496.1,2496.0,0.84096]
[1730052992320,1.9943783,2496.1,2495.9,0.85056]
[1730052992527,1.5574383,2496.0,2495.9,0.85056]
[1730052993322,1.5574383,2496.0,2495.9,0.4495]
[1730052994429,1.5574383,2496.0,2495.5,1.1563783]
[1730052994430,0.40115,2495.5,2495.4,0.40114]
[1730052994618,2.3955283,2495.5,2495.4,0.40114]
[1730052996030,0.40115,2495.4,2495.3,3.60895]
[1730052996225,1.5575283,2495.4,2495.3,0.40115]
[1730052996423,1.9728283,2495.4,2495.3,0.40115]
[1730052998826,0.40114,2495.5,2495.4,0.40115]
[1730052999128,1.23914,2495.5,2495.4,1.5575283]
[1730052999929,0.40114,2495.5,2495.4,1.5575283]
[1730053000117,1.23914,2495.5,2495.4,1.5575283]
[1730053001721,0.40117,2495.3,2495.2,0.8684]
[1730053001928,0.40122,2495.1,2495.0,0.40121]
[1730053002137,1.1563783,2495.1,2494.9,2.4385783]
[1730053002337,1.1563783,2495.1,2494.9,2.8397983]
[1730053002338,0.40122,2495.0,2494.9,2.8397983]
[1730053003829,1.1563783,2495.1,2494.9,2.8397983]
[1730053004030,1.1563783,2495.1,2495.0,1.5575983]
[1730053004031,1.5575783,2495.1,2495.0,1.5575983]
[1730053005529,0.4012,2495.1,2495.0,1.5575983]
[1730053005739,1.2665,2495.4,2495.1,0.40118]
[1730053005740,0.4012,2495.2,2495.1,0.40118]
[1730053005932,0.4012,2495.2,2495.1,1.5575583]
[1730053008338,1.1563783,2495.3,2495.1,1.5575583]
[1730053008339,1.00288,2495.5,2495.1,5.1643783]
[1730053008530,2.3955483,2495.4,2495.3,0.40115]
[1730053008735,2.3955483,2495.4,2495.3,0.81535]
[1730053009938,1.5575483,2495.4,2495.3,0.81535]
[1730053010234,2.3955483,2495.4,2495.3,0.81535]
[1730053012338,1.5575483,2495.4,2495.3,1.26355]
[1730053012535,2.3955483,2495.4,2495.3,1.26355]
[1730053014247,2.3955483,2495.4,2491.5,0.41858745]
[1730053014248,1.003,2495.2,2494.6,1.05138]
[1730053014546,1.5576483,2494.7,2494.6,1.45265]
[1730053014845,2.3956483,2494.7,2494.6,1.05138]
[1730053015148,2.3956483,2494.7,2494.5,2.3769683]
[1730053015149,0.40128,2494.6,2494.5,2.3769683]
[1730053016740,1.5576583,2494.6,2494.5,2.3769683]
[1730053021352,1.5576583,2494.6,2494.5,1.22059]
[1730053021556,1.5576583,2494.6,2494.5,2.3769683]
[1730053030052,1.5576583,2494.6,2494.5,1.22059]
[1730053034457,1.5576583,2494.6,2494.5,0.8193]
[1730053036760,1.5576583,2494.6,2494.5,1.2206]
[1730053037468,1.5576583,2494.6,2494.5,0.8193]
[1730053037963,3.2078,2495.0,2494.5,2.3769783]
[1730053038164,1.23925,2494.9,2494.8,0.40123]
[1730053038370,1.23925,2494.9,2494.8,0.81693]
[1730053038966,2.3956283,2494.9,2494.8,0.81693]
[1730053039568,1.5576083,2495.0,2494.8,5.9813283]
[1730053039772,2.3956083,2495.0,2494.9,0.84903]
[1730053040759,2.3956083,2495.0,2494.9,0.4478]
[1730053040959,2.3956083,2495.0,2494.9,0.84903]
[1730053041163,2.3956083,2495.0,2494.9,0.4478]
[1730053042264,1.5576083,2495.0,2494.9,0.4478]
[1730053042458,0.40128,2494.6,2494.5,3.60909]
[1730053042667,1.5576583,2494.6,2494.5,3.60909]
[1730053043066,1.5576583,2494.6,2494.5,0.40129]
[1730053043271,0.4013,2494.5,2494.4,0.4068]
[1730053043474,2.3956783,2494.5,2494.4,0.80811]
[1730053047762,1.9943783,2494.5,2494.4,1.9644883]
[1730053048272,2.3956783,2494.5,2494.4,1.9644883]
[1730053049068,1.9943783,2494.5,2494.4,1.9644883]
[1730053049668,2.3956783,2494.5,2494.4,1.9644883]
[1730053051074,1.9943783,2494.5,2494.4,1.9644883]
[1730053051481,2.3956783,2494.5,2494.4,1.9644883]
[1730053051876,2.3956783,2494.5,2494.4,0.80811]
[1730053052174,1.9943783,2494.5,2494.4,0.80811]
[1730053052371,1.1563783,2494.6,2494.4,1.5631783]
[1730053052679,1.1563783,2494.6,2494.5,0.4013]
[1730053052680,1.23928,2494.6,2494.5,0.4013]
[1730053052877,2.3956583,2494.6,2494.5,0.4013]
[1730053053076,2.3956583,2494.6,2494.2,3.2078]
[1730053053077,6.0031783,2494.6,2494.2,3.2078]
[1730053053379,0.40131,2494.5,2494.4,0.4013]
[1730053054482,0.40131,2494.4,2494.3,0.84401]
[1730053054979,1.5576883,2494.4,2494.3,0.84401]
[1730053056376,1.5576883,2494.4,2494.3,1.25791]
[1730053058180,1.5576883,2494.4,2494.3,0.8566]
[1730053058377,0.40139,2494.1,2494.0,0.40136]
[1730053058675,2.3957683,2494.1,2494.0,0.40136]
[1730053058875,2.3957683,2494.1,2493.9,0.8436]
[1730053058876,1.9943783,2494.1,2493.9,0.8436]
[1730053059071,1.5577583,2494.0,2493.9,1.24498]
[1730053059677,1.00352,2493.9,2493.1,3.2078]
[1730053059877,1.5578883,2493.2,2493.1,4.0366]
[1730053060081,2.3958883,2493.2,2493.1,4.0366]
[1730053061201,2.3958883,2493.2,2493.1,3.6351]
[1730053061577,2.3958883,2493.2,2493.1,4.03662]
[1730053061882,1.9943783,2493.2,2493.1,4.03662]
[1730053062182,0.4218,2493.4,2493.3,0.40148]
[1730053062183,0.40148,2493.4,2493.3,0.40148]
[1730053062478,1.24748,2493.4,2493.3,0.40148]
[1730053062681,2.90900332,2493.5,2493.4,0.40147]
[1730053062886,3.75500332,2493.5,2493.4,0.40147]
[1730053070488,0.846,2493.5,2493.3,0.40149]
[1730053070696,0.846,2493.5,2493.4,0.40147]
[1730053070880,1.24746,2493.5,2493.4,0.40147]
[1730053071493,0.40145,2493.6,2493.5,0.40144]
[1730053071992,1.24745,2493.6,2493.5,0.40144]
[1730053077198,3.75499332,2493.6,2493.5,0.40144]
[1730053081895,3.75499332,2493.6,2493.5,0.82734]
[1730053082604,2.40476796,2493.6,2493.5,0.82734]
[1730053083299,0.40152,2493.2,2493.1,0.40151]
[1730053083602,1.55882796,2493.2,2493.1,0.40151]
[1730053084105,1.42995,2493.5,2493.2,0.40149]
[1730053084106,0.4015,2493.3,2493.2,0.40149]
[1730053084300,0.4015,2493.4,2493.3,0.40148]
[1730053084503,1.2475,2493.4,2493.3,0.40148]
[1730053084806,1.15731796,2493.4,2493.3,0.40149]
[1730053085000,2.00331796,2493.4,2493.3,0.40149]
[1730053086000,2.00331796,2493.4,2493.3,0.83229]
[1730053086204,2.00331796,2493.4,2493.3,4.04009]
[1730053086407,2.00331796,2493.4,2493.3,4.48799]
[1730053087395,2.40478796,2493.4,2493.3,4.48799]
[1730053088507,5.36862796,2493.9,2493.3,4.48799]
[1730053088508,0.40141,2493.9,2493.8,0.4014]
[1730053088706,2.40472796,2493.9,2493.8,0.4014]
[1730053088909,1.55872796,2493.9,2493.8,0.4014]
[1730053089095,5.48429,2494.2,2493.6,0.4403]
[1730053089096,4.4809,2494.2,2493.6,0.4403]
[1730053089302,0.4014,2494.0,2493.9,0.40139]
[1730053090594,2.90837135,2494.0,2493.9,0.40139]
[1730053091209,3.35297135,2494.0,2493.9,0.40139]
[1730053091608,3.75435135,2494.0,2493.9,0.40139]
[1730053092110,3.35297135,2494.0,2493.9,0.40139]
[1730053092317,0.846,2494.0,2493.9,0.40139]
[1730053093623,0.85,2494.0,2493.7,4.65837]
[1730053093819,0.40136,2494.1,2494.0,0.40136]
[1730053094121,1.25136,2494.1,2494.0,0.40136]
[1730053094319,0.85,2494.1,2494.0,0.40136]
[1730053094513,6.11612135,2494.2,2494.1,0.40136]
[1730053094715,6.96612135,2494.2,2494.1,0.40136]
[1730053097123,0.40139,2494.1,2494.0,0.40137]
[1730053099216,1.25139,2494.1,2494.0,0.40137]
[1730053100819,0.40139,2494.1,2494.0,0.40137]
[1730053101030,1.25139,2494.1,2494.0,0.40137]
[1730053104419,0.85,2494.1,2494.0,0.40137]
[1730053106628,1.25136,2494.1,2494.0,0.40137]
[1730053106828,1.25136,2494.1,2494.0,0.82247]
[1730053107926,1.25136,2494.1,2494.0,0.40137]
[1730053108831,1.25136,2494.1,2494.0,3.60917]
[1730053110530,2.40835608,2494.1,2494.0,3.60917]
[1730053112529,0.85,2494.1,2494.0,3.60917]
[1730053112828,2.00699608,2494.2,2494.1,0.40136]
[1730053113019,2.00699608,2494.2,2494.1,0.82756]
[1730053113222,2.40834608,2494.2,2494.1,0.82756]
[1730053113423,2.00699608,2494.2,2494.1,0.82756]
[1730053114431,2.40834608,2494.2,2494.1,0.82756]
[1730053115928,2.00699608,2494.2,2494.1,0.82756]
[1730053116924,0.85,2494.2,2494.1,0.82756]
[1730053117129,0.85,2494.2,2494.1,4.83716]
[1730053117130,1.15699608,2494.2,2494.1,4.83716]
[1730053117835,1.15699608,2494.4,2494.2,0.40135]
[1730053118032,0.85,2494.4,2494.3,4.03653]
[1730053118234,1.15699608,2494.4,2494.3,4.03653]
[1730053118426,2.00699608,2494.4,2494.3,4.03653]
[1730053120229,2.40830608,2494.4,2494.3,4.03653]
[1730053120938,2.00699608,2494.4,2494.3,4.03653]
[1730053122723,0.85,2494.4,2494.3,9.20232608]
[1730053123320,1.15699608,2494.5,2494.3,8.80099608]
[1730053123526,0.843,2494.6,2494.3,4.79219608]
[1730053123825,15.07895,2494.8,2494.5,0.4013]
[1730053123826,1.15699608,2494.7,2494.5,0.4013]
[1730053124026,1.99999608,2494.7,2494.6,0.81518]
[1730053124330,1.15699608,2494.7,2494.6,0.81518]
[1730053124828,1.15699608,2494.7,2494.6,4.02298]
[1730053125327,15.07895,2494.8,2494.7,0.40127]
[1730053125526,15.07895,2494.8,2494.7,0.83147]
[1730053125829,15.07895,2494.8,2494.7,5.99726608]
[1730053126232,15.07895,2494.8,2494.7,1.98846608]
[1730053126431,15.07895,2494.8,2494.7,2.41256608]
[1730053126829,15.07895,2494.8,2494.7,1.25557]
[1730053129935,15.07895,2494.8,2494.7,4.46337]
[1730053130328,16.23594608,2494.8,2494.7,4.46337]
[1730053132826,16.23594608,2494.8,2494.7,1.25557]
[1730053133028,16.23594608,2494.8,2494.7,4.46337]
[1730053134629,16.23594608,2494.8,2494.6,1.57089608]
[1730053134630,16.23594608,2494.8,2494.6,0.4139]
[1730053134831,16.23594608,2494.8,2494.6,3.2078]
[1730053134832,1.55826608,2494.7,2494.6,3.2078]
[1730053135025,2.42006608,2494.7,2494.6,3.60908]
[1730053135434,1.98646608,2494.7,2494.6,3.60908]
[1730053136935,15.07895,2494.8,2494.7,0.40127]
[1730053137133,15.07895,2494.8,2494.7,1.99516608]
[1730053137326,15.07895,2494.8,2494.7,1.25517]
[1730053137725,16.23594608,2494.8,2494.7,1.25517]
[1730053139334,16.63719608,2494.8,2494.7,1.25517]
[1730053139836,16.23594608,2494.8,2494.7,1.25517]
[1730053140444,16.63719608,2494.8,2494.7,1.25517]
[1730053140633,16.63719608,2494.8,2494.7,0.83817]
[1730053140940,16.63719608,2494.8,2494.6,3.60907]
[1730053140941,0.40127,2494.7,2494.6,3.60907]
[1730053141137,1.55826608,2494.7,2494.6,3.60907]
[1730053141834,1.15699608,2494.7,2494.3,5.25159608]
[1730053142039,0.40131,2494.5,2494.4,0.4013]
[1730053142239,1.55830608,2494.5,2494.4,0.4013]
[1730053142441,1.55830608,2494.5,2494.3,4.48581]
[1730053142442,0.40131,2494.4,2494.3,4.48581]
[1730053142843,1.15699608,2494.4,2494.3,4.48581]
[1730053143944,2.40128608,2494.6,2494.5,0.4013]
[1730053145849,6.41008608,2494.6,2494.5,0.4013]
[1730053146247,2.40128608,2494.6,2494.5,0.4013]
[1730053150443,0.40131,2494.5,2494.4,0.4013]
[1730053150651,1.97040608,2494.5,2494.4,0.4013]
[1730053151449,1.97040608,2494.5,2494.4,0.40131]
[1730053151654,18.28675,2494.8,2494.3,4.0845]
[1730053151847,15.07895,2494.8,2494.7,0.40127]
[1730053152048,15.4802,2494.8,2494.7,0.40127]
[1730053152248,16.23594608,2494.8,2494.7,1.27157]
[1730053152449,15.07895,2494.8,2494.7,2.42856608]
[1730053157045,15.07895,2494.8,2494.7,5.63636608]
[1730053157451,16.63719608,2494.8,2494.7,0.40127]
[1730053157654,17.49340608,2494.8,2494.7,0.40127]
[1730053158864,15.07895,2494.8,2494.7,3.60907]
[1730053159354,15.07895,2494.8,2494.7,4.03227]
[1730053163060,15.07895,2494.8,2494.7,5.18926608]
[1730053163253,15.07895,2494.8,2494.7,4.03227]
[1730053164657,15.07895,2494.8,2494.7,0.82447]
[1730053164960,15.07895,2494.8,2494.7,4.03227]
[1730053166956,15.07895,2494.8,2494.7,5.18926608]
[1730053167859,15.07895,2494.8,2494.7,9.19806608]
[1730053173368,11.37495,2494.8,2494.7,9.19806608]
[1730053176865,11.37495,2494.8,2494.7,5.99026608]
[1730053177066,11.37495,2494.8,2494.7,9.19806608]
[1730053178059,11.37495,2494.8,2494.7,5.99026608]
[1730053178259,11.37495,2494.8,2494.7,9.19806608]
[1730053180566,11.37495,2494.8,2494.7,9.82544963]
[1730053180865,11.37495,2494.8,2494.7,5.18926608]
[1730053183063,11.37495,2494.8,2494.7,9.19806608]
[1730053185071,10.87495,2494.8,2494.7,9.19806608]
[1730053185275,10.37495,2494.8,2494.7,9.19806608]
[1730053185570,9.87625,2494.8,2494.7,9.19806608]
[1730053185963,9.37625,2494.8,2494.7,9.19806608]
[1730053186272,8.87875,2494.8,2494.7,9.19806608]
[1730053186464,8.87875,2494.8,2494.7,5.18926608]
[1730053186665,8.38005,2494.8,2494.7,5.18926608]
[1730053188662,8.38005,2494.8,2494.7,1.98146608]
[1730053189070,8.38005,2494.8,2494.7,5.18926608]
[1730053190276,8.38005,2494.8,2494.7,1.98146608]
[1730053190679,8.38005,2494.8,2494.7,5.18926608]
[1730053190976,8.38005,2494.8,2494.7,9.19806608]
[1730053194579,8.38005,2494.8,2494.7,9.82546057]
[1730053195281,8.38005,2494.8,2494.7,9.19806608]
[1730053199780,8.38005,2494.8,2494.7,5.99026608]
[1730053200185,8.38005,2494.8,2494.7,9.19806608]
[1730053203088,8.38005,2494.8,2494.7,9.32354317]
[1730053203390,8.38005,2494.8,2494.7,9.95092787]
[1730053206388,8.38005,2494.8,2494.7,10.95471358]
[1730053206789,8.38005,2494.8,2494.7,14.31028874]
[1730053209082,8.38005,2494.8,2494.7,14.31024178]
[1730053210195,8.38005,2494.8,2494.7,15.46723786]
[1730053210381,8.38005,2494.8,2494.7,15.14361358]
[1730053210582,8.38005,2494.8,2494.7,16.7218503]
[1730053210794,8.38005,2494.8,2494.7,15.14361358]
[1730053211293,8.38005,2494.8,2494.7,12.13230795]
[1730053211492,8.38005,2494.8,2494.7,15.14347353]
[1730053211692,8.38005,2494.8,2494.7,12.25777318]
[1730053211890,8.38005,2494.8,2494.7,15.14349501]
[1730053212083,8.38005,2494.8,2494.7,17.24787156]
[1730053212591,8.38005,2494.8,2494.7,15.14349501]
[1730053213182,8.38005,2494.8,2494.7,13.98649893]
[1730053213791,8.38005,2494.8,2494.7,15.03871822]
[1730053214284,8.38005,2494.8,2494.7,16.1957143]
[1730053214687,8.38005,2494.8,2494.7,15.03871822]
[1730053214896,8.38005,2494.8,2494.7,16.1957143]
[1730053215295,8.38005,2494.8,2494.7,13.30999094]
[1730053215499,8.38005,2494.8,2494.7,16.1956561]
[1730053216684,8.38005,2494.8,2494.7,12.9878561]
[1730053216889,8.38005,2494.8,2494.7,16.1956561]
[1730053217296,7.88135,2494.8,2494.7,16.1956561]
[1730053217505,7.88135,2494.8,2494.7,14.94101907]
[1730053217997,7.88135,2494.8,2494.7,13.78414874]
[1730053218506,7.88135,2494.8,2494.7,13.78425319]
[1730053219297,7.88135,2494.8,2494.7,12.78055221]
[1730053219490,7.88135,2494.8,2494.7,14.5370642]
[1730053221091,7.88135,2494.8,2494.7,11.3292642]
[1730053221490,7.88135,2494.8,2494.7,14.5370642]
[1730053221694,7.88135,2494.8,2494.7,7.17059213]
[1730053221902,7.88135,2494.8,2494.7,11.15711298]
[1730053222100,7.88135,2494.8,2494.7,9.05273643]
[1730053222294,7.88135,2494.8,2494.7,8.04901529]
[1730053223192,7.88135,2494.8,2494.7,7.42168958]
[1730053223403,7.88135,2494.8,2494.7,8.04904101]
[1730053223600,7.88135,2494.8,2494.7,7.29622444]
[1730053223902,7.88135,2494.8,2494.7,8.04904638]
[1730053224288,7.88135,2494.8,2494.7,7.42172067]
[1730053224493,7.88135,2494.8,2494.7,7.29625553]
[1730053224798,7.88135,2494.8,2494.7,8.29838003]
[1730053224997,7.88135,2494.8,2494.7,7.54555809]
[1730053225191,7.88135,2494.8,2494.7,5.09057884]
[1730053225397,7.88135,2494.8,2494.7,10.55684055]
[1730053226211,7.88135,2494.8,2494.7,7.34904055]
[1730053226398,7.88135,2494.8,2494.7,10.55684055]
[1730053227599,7.88135,2494.8,2494.7,10.55684313]
[1730053227907,7.88135,2494.8,2494.7,10.5569032]
[1730053228897,7.88135,2494.8,2494.7,10.88068313]
[1730053230709,7.88135,2494.8,2494.7,17.82704722]
[1730053230909,7.27912623,2494.8,2494.7,21.38214169]
[1730053231211,7.27912623,2494.8,2494.7,19.27776514]
[1730053231618,7.27912623,2494.8,2494.7,19.27756691]
[1730053231909,3.0540346,2494.8,2494.7,21.90803759]
[1730053232110,0.5489846,2494.8,2494.7,21.90803759]
[1730053232508,4.6e-06,2494.8,2494.7,20.13061001]
[1730053232706,4.6e-06,2494.8,2494.7,21.90039117]
[1730053233708,4.6e-06,2494.8,2494.7,19.89625915]
[1730053234109,0.8487,2495.5,2494.7,19.49498915]
[1730053234320,0.8487,2495.5,2495.4,4.76594608]
[1730053237637,0.4166,2495.5,2495.4,4.76594608]
[1730053238214,0.4355,2495.9,2495.8,0.40109]
[1730053238420,0.4355,2495.9,2495.8,1.55808608]
[1730053238918,5.59889608,2495.9,2495.8,1.55808608]
[1730053239534,6.03149608,2495.9,2495.8,1.55808608]
[1730053239820,6.43256608,2495.9,2495.8,1.15699608]
[1730053240017,6.43256608,2495.9,2495.7,4.76588608]
[1730053240222,2.42616608,2495.9,2495.7,4.76588608]
[1730053240422,2.02509608,2495.9,2495.7,4.76588608]
[1730053240626,2.42617608,2495.9,2495.7,4.76588608]
[1730053242425,2.42617608,2495.9,2495.7,4.76589608]
[1730053242817,2.42617608,2495.9,2495.7,4.76588608]
[1730053244229,2.42617608,2495.9,2495.7,4.76589608]
[1730053245123,2.02509608,2495.9,2495.7,4.36479608]
[1730053245328,2.42617608,2495.9,2495.7,4.76588608]
[1730053245626,1.55808608,2495.8,2495.7,3.2078]
[1730053246125,5.56528608,2495.8,2495.7,3.2078]
[1730053246516,5.16419608,2495.8,2495.4,3.2078]
[1730053246717,1.55813608,2495.5,2495.4,3.2078]
[1730053246926,1.55813608,2495.5,2495.1,3.609]
[1730053246927,2.15985608,2495.5,2495.1,3.609]
[1730053247125,1.15699608,2495.2,2495.1,3.609]
[1730053247527,5.16499608,2495.2,2495.1,3.609]
[1730053248524,5.56618608,2495.2,2495.1,3.609]
[1730053249329,5.56618608,2495.2,2495.0,0.40121]
[1730053249330,0.40122,2495.1,2495.0,0.40121]
[1730053249521,0.40122,2495.1,2494.8,1.15699608]
[1730053249522,1.15699608,2495.1,2494.8,1.15699608]
[1730053249729,1.55821608,2495.0,2494.9,0.40122]
[1730053250231,5.16499608,2495.0,2494.9,0.40122]
[1730053251824,1.15699608,2495.2,2495.1,0.4012]
[1730053252045,1.15699608,2495.4,2495.3,0.40117]
[1730053252544,5.16419608,2495.4,2495.3,0.40117]
[1730053252742,5.16419608,2495.4,2495.2,0.40117]
[1730053252948,1.15699608,2495.3,2495.2,0.40117]
[1730053253148,5.16419608,2495.3,2495.2,0.40117]
[1730053254145,5.56538608,2495.3,2495.2,0.40117]
[1730053255748,8.77318608,2495.3,2495.2,0.40117]
[1730053256052,0.40122,2495.1,2495.0,0.4012]
[1730053256254,1.55821608,2495.1,2495.0,0.4012]
[1730053256447,5.56621608,2495.1,2495.0,0.4012]
[1730053256645,5.93101608,2495.1,2495.0,0.4012]
[1730053260151,5.52979608,2495.1,2495.0,0.4012]
[1730053260350,5.56619608,2495.1,2495.0,0.4012]
[1730053261642,6.32199216,2495.1,2494.7,1.0021245]
[1730053261844,1.55824608,2494.8,2494.7,1.4033845]
[1730053262046,1.55824608,2494.8,2494.7,1.0021245]
[1730053262349,5.56704608,2494.8,2494.7,1.0021245]
[1730053263152,1.55824608,2494.8,2494.7,1.0021245]
[1730053263347,5.56704608,2494.8,2494.7,1.0021245]
[1730053263551,5.56704608,2494.8,2494.7,1.4033945]